bitfinex-derivatives/quotes_SOLF0:USTF0_20260306
["timestamp","ask_amount","ask_price","bid_price","bid_amount"]
[1772793579656,8.91145792,87.65,87.62,3.02862319]
[1772793579856,8.91145792,87.649,87.62,3.02862319]
[1772793580056,10.267,87.66,87.62,3.02862319]
[1772793580265,10.267,87.657,87.621,10.271]
[1772793580465,8.91103463,87.656,87.621,10.271]
[1772793580661,8.91103463,87.655,87.621,10.271]
[1772793580867,8.91103463,87.654,87.62,3.02862319]
[1772793581064,10.268,87.652,87.62,3.02862319]
[1772793581370,8.91103463,87.651,87.614,10.272]
[1772793581668,8.91103463,87.65,87.614,10.272]
[1772793581869,8.91103463,87.649,87.614,10.272]
[1772793582070,8.91103463,87.648,87.614,10.272]
[1772793582371,8.91103463,87.647,87.614,10.272]
[1772793582569,10.65142665,87.668,87.614,10.272]
[1772793582765,10.268,87.65,87.614,10.272]
[1772793582966,8.91074521,87.649,87.614,10.272]
[1772793583268,8.91074521,87.648,87.614,10.272]
[1772793583467,10.268,87.65,87.614,10.272]
[1772793583668,8.91053956,87.649,87.614,10.272]
[1772793583972,8.91053956,87.648,87.611,4.85727575]
[1772793584167,10.65142665,87.668,87.611,4.85727575]
[1772793584368,8.91025754,87.667,87.611,4.85727575]
[1772793584569,8.91025754,87.666,87.611,4.85727575]
[1772793584773,8.91025754,87.665,87.611,4.85727575]
[1772793584967,8.91025754,87.664,87.611,4.85727575]
[1772793585167,8.91025754,87.663,87.611,4.85727575]
[1772793585367,10.268,87.654,87.612,4.85727575]
[1772793585670,8.91025754,87.653,87.612,4.85727575]
[1772793585868,8.91025754,87.652,87.612,4.85727575]
[1772793586069,8.91025754,87.651,87.618,15.12125156]
[1772793586262,3.02862319,87.67,87.61,3.02862319]
[1772793586263,10.267,87.661,87.619,4.84925156]
[1772793586467,8.90890388,87.66,87.619,4.84925156]
[1772793586667,8.90890388,87.659,87.619,4.84925156]
[1772793586968,8.90890388,87.658,87.619,4.84925156]
[1772793587170,8.90890388,87.657,87.619,4.84925156]
[1772793587470,8.90890388,87.656,87.62,3.02862319]
[1772793587670,8.90890388,87.655,87.62,3.02862319]
[1772793587871,8.90890388,87.654,87.614,10.272]
[1772793588073,8.90890388,87.653,87.614,10.272]
[1772793588267,8.90890388,87.652,87.614,10.272]
[1772793588463,8.90890388,87.651,87.614,10.272]
[1772793588776,8.90890388,87.65,87.614,10.272]
[1772793588968,8.90890388,87.649,87.614,10.272]
[1772793589271,8.90890388,87.648,87.614,10.272]
[1772793589466,10.65142665,87.668,87.614,10.272]
[1772793589665,10.268,87.651,87.616,15.1250914]
[1772793589863,8.90935595,87.65,87.617,4.8530914]
[1772793590067,8.90935595,87.649,87.617,4.8530914]
[1772793590266,10.65142665,87.669,87.617,4.8530914]
[1772793590467,8.90912783,87.668,87.617,4.8530914]
[1772793590664,8.90912783,87.667,87.617,4.8530914]
[1772793590972,10.267,87.658,87.617,4.8530914]
[1772793591174,8.90912783,87.657,87.617,4.8530914]
[1772793591370,8.90912783,87.656,87.617,4.8530914]
[1772793591570,8.90912783,87.655,87.617,4.8530914]
[1772793591770,8.90912783,87.654,87.617,4.8530914]
[1772793592072,10.268,87.651,87.617,4.8530914]
[1772793592274,8.90912783,87.65,87.617,4.8530914]
[1772793592469,8.90912783,87.649,87.61,13.30204566]
[1772793592674,8.90912783,87.648,87.61,13.30204566]
[1772793592873,10.268,87.651,87.61,18.1360705]
[1772793593074,8.90903544,87.65,87.611,4.83402484]
[1772793593273,8.90903544,87.649,87.611,4.83402484]
[1772793593474,10.268,87.651,87.611,4.83402484]
[1772793593674,8.9088756,87.65,87.611,4.83402484]
[1772793593875,8.9088756,87.649,87.611,4.83402484]
[1772793594073,10.268,87.651,87.611,4.83402484]
[1772793594274,8.90883289,87.65,87.613,4.82462282]
[1772793594573,8.90883289,87.649,87.613,4.82462282]
[1772793594774,10.268,87.651,87.613,4.82462282]
[1772793594974,8.90883289,87.65,87.613,4.82462282]
[1772793595175,8.90883289,87.649,87.613,4.82462282]
[1772793595375,10.268,87.651,87.613,4.82462282]
[1772793595579,8.90880793,87.65,87.613,4.82462282]
[1772793595777,8.90880793,87.649,87.613,4.82462282]
[1772793595974,10.268,87.651,87.613,4.82462282]
[1772793596270,8.90880793,87.65,87.613,4.82462282]
[1772793596469,8.90880793,87.649,87.613,4.82462282]
[1772793596672,10.268,87.651,87.613,4.82462282]
[1772793596879,8.90884038,87.65,87.613,4.82462282]
[1772793597178,8.90884038,87.649,87.613,4.82462282]
[1772793597373,8.90884038,87.648,87.613,4.82462282]
[1772793597581,10.268,87.651,87.613,4.82462282]
[1772793597774,8.91045257,87.65,87.613,4.82462282]
[1772793597977,8.91045257,87.649,87.613,4.82462282]
[1772793598176,8.91045257,87.648,87.613,4.82462282]
[1772793598475,8.91045257,87.647,87.613,4.82462282]
[1772793598676,10.268,87.651,87.613,4.82462282]
[1772793598881,8.91232734,87.65,87.613,4.82462282]
[1772793599079,8.91232734,87.649,87.613,4.82462282]
[1772793599282,8.91232734,87.648,87.613,4.82462282]
[1772793599479,10.268,87.651,87.61,3.02904566]
[1772793599480,8.91232734,87.647,87.616,10.272]
[1772793599684,10.268,87.651,87.617,4.82208386]
[1772793599884,8.91453514,87.65,87.617,4.82208386]
[1772793600081,8.91453514,87.649,87.617,4.82208386]
[1772793600284,8.91453514,87.648,87.617,4.82208386]
[1772793600484,8.91453514,87.647,87.617,4.82208386]
[1772793600780,8.91453514,87.646,87.619,4.82208386]
[1772793600982,10.65142665,87.682,87.641,4.82410559]
[1772793601183,8.91562089,87.681,87.65,3.02904566]
[1772793601384,8.91562089,87.68,87.65,3.02904566]
[1772793601580,450.09204145,87.703,87.587,301.30907243]
[1772793601581,3.69721583,87.702,87.67,3.02904566]
[1772793601886,3.69721583,87.702,87.66,3.02904566]
[1772793602786,3.69721583,87.694,87.66,3.02904566]
[1772793603184,3.69721583,87.694,87.65,3.02904566]
[1772793603987,3.69721583,87.693,87.65,3.02904566]
[1772793604583,3.69721583,87.693,87.66,3.02904566]
[1772793605088,10.262,87.702,87.67,3.02904566]
[1772793605283,435.86507586,87.703,87.67,3.02904566]
[1772793605490,435.86507586,87.703,87.68,3.02904566]
[1772793605689,435.86507586,87.703,87.67,6.66167313]
[1772793606490,3.69721583,87.705,87.67,6.66167313]
[1772793609896,3.69721583,87.705,87.67,3.63262747]
[1772793614795,3.69721583,87.712,87.672,3.63262747]
[1772793615801,3.69721583,87.709,87.664,10.266]
[1772793616902,3.69721583,87.707,87.664,10.266]
[1772793617898,3.69721583,87.704,87.664,10.266]
[1772793618102,3.69721583,87.699,87.65,3.63262747]
[1772793619499,3.69721583,87.681,87.637,3.63262747]
[1772793620904,10.265,87.679,87.638,3.63262747]
[1772793621501,3.69721583,87.679,87.64,13.90162747]
[1772793623210,3.69721583,87.678,87.64,13.90162747]
[1772793623408,3.69721583,87.678,87.641,3.63262747]
[1772793629910,3.69721583,87.676,87.641,3.63262747]
[1772793633918,3.82994316,87.67,87.629,3.67775344]
[1772793634221,3.82994316,87.669,87.611,3.67775344]
[1772793634913,10.267,87.659,87.622,10.271]
[1772793635219,3.82994316,87.658,87.622,10.271]
[1772793635623,10.268,87.656,87.621,3.67775344]
[1772793636016,3.82994316,87.679,87.631,3.67775344]
[1772793636215,10.265,87.676,87.635,3.67775344]
[1772793637820,10.265,87.676,87.639,3.67775344]
[1772793640626,10.265,87.674,87.639,3.67775344]
[1772793642427,14.09494316,87.674,87.639,3.67775344]
[1772793643521,3.82994316,87.673,87.632,10.27]
[1772793643730,6.85898882,87.67,87.632,10.27]
[1772793643930,3.82994316,87.669,87.632,10.27]
[1772793645232,3.82994316,87.667,87.626,3.67775344]
[1772793647223,3.82994316,87.667,87.627,10.271]
[1772793648330,10.267,87.664,87.627,10.271]
[1772793648631,3.82994316,87.663,87.627,10.271]
[1772793649832,10.267,87.662,87.627,10.271]
[1772793650033,10.267,87.662,87.627,13.94875344]
[1772793650833,3.82994316,87.663,87.629,13.94775344]
[1772793651728,10.266,87.669,87.633,3.67775344]
[1772793653938,10.266,87.665,87.633,3.67775344]
[1772793654638,3.82994316,87.66,87.619,3.67775344]
[1772793655730,3.82994316,87.656,87.619,3.67775344]
[1772793660844,3.82994316,87.651,87.619,3.67775344]
[1772793661733,10.268,87.648,87.619,3.67775344]
[1772793662338,3.94271794,87.647,87.609,10.273]
[1772793662647,3.94271794,87.644,87.6,13.30225083]
[1772793662841,3.94271794,87.644,87.601,3.920895]
[1772793663336,10.269,87.639,87.601,3.920895]
[1772793664247,10.269,87.646,87.611,3.920895]
[1772793664944,3.94271794,87.655,87.621,3.920895]
[1772793665541,10.59903175,87.687,87.563,306.98066127]
[1772793665542,3.94271794,87.665,87.631,3.920895]
[1772793670651,10.266,87.667,87.632,3.920895]
[1772793673053,10.266,87.667,87.641,3.920895]
[1772793675454,14.13238872,87.707,87.59,20.551]
[1772793675455,3.94271794,87.663,87.617,3.920895]
[1772793675650,3.02825083,87.66,87.606,3.920895]
[1772793675851,3.94271794,87.658,87.606,3.920895]
[1772793676052,3.94271794,87.656,87.61,3.02825083]
[1772793676555,3.02825083,87.66,87.61,3.02825083]
[1772793676556,3.94271794,87.654,87.61,3.02825083]
[1772793676755,10.268,87.648,87.61,3.02825083]
[1772793677557,10.267,87.656,87.621,3.920895]
[1772793678759,10.267,87.656,87.622,10.271]
[1772793679257,10.267,87.656,87.621,3.920895]
[1772793679458,14.20971794,87.656,87.621,3.920895]
[1772793680860,3.94271794,87.656,87.622,10.271]
[1772793681051,3.94271794,87.656,87.623,3.920895]
[1772793681356,10.267,87.662,87.623,3.920895]
[1772793682459,10.267,87.662,87.63,3.02825083]
[1772793682861,10.266,87.668,87.63,3.02825083]
[1772793683056,8.85506883,87.667,87.63,3.02825083]
[1772793683262,8.85506883,87.666,87.63,3.02825083]
[1772793683465,8.85506883,87.665,87.63,3.02825083]
[1772793683766,10.266,87.668,87.63,6.94914583]
[1772793683971,12.79804401,87.667,87.631,3.920895]
[1772793684266,8.85532607,87.666,87.631,3.920895]
[1772793684466,3.94271794,87.667,87.631,3.920895]
[1772793684862,3.94271794,87.667,87.631,14.190895]
[1772793686861,3.94271794,87.667,87.632,3.920895]
[1772793697374,3.94271794,87.667,87.635,3.82288295]
[1772793698069,3.94271794,87.667,87.637,10.27]
[1772793700874,3.94271794,87.667,87.641,10.269]
[1772793701077,10.265,87.679,87.641,10.269]
[1772793701078,13.91864249,87.679,87.642,3.82288295]
[1772793701276,12.50723769,87.678,87.642,3.82288295]
[1772793701478,12.50723769,87.677,87.642,3.82288295]
[1772793701676,8.8535952,87.676,87.642,3.82288295]
[1772793701876,8.8535952,87.675,87.642,3.82288295]
[1772793702075,8.8535952,87.674,87.642,3.82288295]
[1772793702379,8.8535952,87.673,87.642,3.82288295]
[1772793702580,3.65364249,87.674,87.635,10.27]
[1772793702779,3.65364249,87.672,87.635,10.27]
[1772793704591,3.65364249,87.67,87.635,10.27]
[1772793705390,3.65364249,87.67,87.636,3.82288295]
[1772793705591,3.65364249,87.67,87.638,3.82288295]
[1772793706188,3.65364249,87.684,87.641,3.82288295]
[1772793706492,3.65364249,87.682,87.641,3.82288295]
[1772793706692,8.85284512,87.681,87.641,3.82288295]
[1772793706888,8.85284512,87.68,87.641,3.82288295]
[1772793707089,8.85284512,87.679,87.641,3.82288295]
[1772793707286,3.65364249,87.682,87.643,3.82288295]
[1772793707888,3.65364249,87.693,87.651,3.82288295]
[1772793708096,3.65364249,87.691,87.651,3.82288295]
[1772793708290,3.65364249,87.689,87.651,3.82288295]
[1772793708490,12.50551018,87.688,87.651,3.82288295]
[1772793708690,8.85186769,87.687,87.651,3.82288295]
[1772793708992,8.85186769,87.686,87.651,3.82288295]
[1772793709293,8.85186769,87.685,87.651,3.82288295]
[1772793709590,3.65364249,87.683,87.64,3.02825083]
[1772793709796,3.65364249,87.681,87.638,3.82288295]
[1772793709999,3.65364249,87.669,87.616,3.82288295]
[1772793710290,3.65364249,87.656,87.616,3.82288295]
[1772793710496,3.65364249,87.654,87.605,3.82288295]
[1772793710699,3.65364249,87.647,87.605,3.82288295]
[1772793711696,3.65364249,87.647,87.608,3.82288295]
[1772793712798,3.65364249,87.647,87.611,3.82288295]
[1772793719504,3.65364249,87.658,87.621,3.82288295]
[1772793720602,13.92064249,87.657,87.621,3.82288295]
[1772793722295,3.65364249,87.657,87.621,3.82288295]
[1772793722495,3.65364249,87.657,87.621,3.70941733]
[1772793723905,3.65364249,87.657,87.622,13.98041733]
[1772793724704,10.267,87.664,87.631,3.70941733]
[1772793724903,3.95721898,87.661,87.63,3.02934056]
[1772793725207,3.95721898,87.661,87.62,3.02934056]
[1772793726309,3.95721898,87.659,87.614,10.272]
[1772793726510,3.95721898,87.657,87.614,10.272]
[1772793726810,3.95721898,87.652,87.614,10.272]
[1772793727806,14.22521898,87.651,87.614,10.272]
[1772793728108,3.95721898,87.65,87.614,10.272]
[1772793728505,3.02934056,87.67,87.61,3.02934056]
[1772793728506,3.95721898,87.648,87.61,3.02934056]
[1772793729812,3.95721898,87.646,87.61,3.02934056]
[1772793735119,3.95721898,87.644,87.61,3.02934056]
[1772793735616,3.95721898,87.644,87.602,10.274]
[1772793736817,3.95721898,87.64,87.602,10.274]
[1772793737822,10.269,87.639,87.602,10.274]
[1772793738122,10.269,87.639,87.603,3.70941733]
[1772793738325,10.269,87.639,87.61,3.02934056]
[1772793740322,10.27,87.634,87.61,3.02934056]
[1772793740525,3.95721898,87.64,87.61,3.02934056]
[1772793741827,14.22621898,87.64,87.61,3.02934056]
[1772793743425,3.95721898,87.639,87.61,3.02934056]
[1772793743826,10.27,87.635,87.61,3.02934056]
[1772793744730,3.95721898,87.629,87.589,3.70941733]
[1772793744927,3.95721898,87.629,87.591,3.70941733]
[1772793745831,3.95721898,87.629,87.593,3.70941733]
[1772793745832,10.271,87.628,87.593,3.70941733]
[1772793746029,10.271,87.628,87.6,3.02934056]
[1772793749837,10.271,87.623,87.59,3.02934056]
[1772793750136,3.95721898,87.629,87.59,3.02934056]
[1772793750137,3.95721898,87.629,87.591,3.70941733]
[1772793750339,3.95721898,87.629,87.6,3.02934056]
[1772793751726,14.22821898,87.629,87.6,3.02934056]
[1772793751933,10.271,87.629,87.601,3.7725899]
[1772793752137,3.96677982,87.656,87.62,3.02934056]
[1772793752739,3.96677982,87.647,87.611,3.7725899]
[1772793753742,3.96677982,87.639,87.6,3.02934056]
[1772793754737,10.27,87.636,87.6,3.02934056]
[1772793754938,3.96677982,87.635,87.6,3.02934056]
[1772793759736,3.96677982,87.635,87.601,10.274]
[1772793759937,3.96677982,87.635,87.601,14.0465899]
[1772793761246,3.96677982,87.635,87.602,3.7725899]
[1772793765849,3.96677982,87.631,87.591,10.275]
[1772793766147,3.96677982,87.631,87.592,3.7725899]
[1772793766747,10.27,87.63,87.592,3.7725899]
[1772793768448,14.23677982,87.63,87.592,3.7725899]
[1772793769252,3.96677982,87.629,87.592,3.7725899]
[1772793770944,3.96677982,87.616,87.58,3.02934056]
[1772793771754,10.272,87.615,87.58,3.02934056]
[1772793772554,14.23877982,87.615,87.58,3.02934056]
[1772793773652,3.96677982,87.614,87.58,3.02934056]
[1772793773855,3.96677982,87.612,87.576,10.277]
[1772793777955,14.23977982,87.61,87.575,3.7725899]
[1772793778157,3.96677982,87.609,87.575,3.7725899]
[1772793779755,3.03172741,87.63,87.57,3.03172741]
[1772793779756,3.96677982,87.603,87.57,3.03172741]
[1772793779951,3.96677982,87.603,87.564,14.0505899]
[1772793780155,3.96677982,87.603,87.565,3.7725899]
[1772793780463,3.96677982,87.601,87.558,3.7725899]
[1772793780661,3.96677982,87.601,87.561,3.7725899]
[1772793781058,3.96677982,87.613,87.571,3.7725899]
[1772793781258,8.7988266,87.612,87.571,3.7725899]
[1772793781461,3.96677982,87.613,87.571,3.7725899]
[1772793781655,8.79861594,87.612,87.571,3.7725899]
[1772793781856,3.96677982,87.613,87.572,3.86116971]
[1772793782053,8.79861594,87.612,87.572,3.86116971]
[1772793782255,3.96677982,87.613,87.58,3.03172741]
[1772793783456,3.97246823,87.61,87.572,3.86116971]
[1772793784264,3.97246823,87.61,87.58,6.89289712]
[1772793784466,10.65916498,87.647,87.581,3.86116971]
[1772793784769,3.97246823,87.645,87.61,3.03172741]
[1772793785069,3.97246823,87.643,87.61,3.03172741]
[1772793785362,3.97246823,87.641,87.61,3.03172741]
[1772793785766,10.27,87.635,87.61,3.03172741]
[1772793786461,10.271,87.627,87.601,3.86116971]
[1772793792766,10.272,87.621,87.6,3.03172741]
[1772793793062,10.272,87.621,87.59,6.89289712]
[1772793795164,3.97246823,87.617,87.59,3.03172741]
[1772793796375,10.272,87.621,87.591,3.86116971]
[1772793801279,14.24446823,87.621,87.591,3.86116971]
[1772793801481,10.272,87.618,87.59,3.03172741]
[1772793801778,14.24446823,87.618,87.59,3.03172741]
[1772793801976,3.97246823,87.609,87.569,3.86116971]
[1772793802275,3.97246823,87.609,87.57,3.03172741]
[1772793802581,3.97246823,87.609,87.571,3.86116971]
[1772793802781,3.97246823,87.597,87.56,3.86116971]
[1772793802980,3.97246823,87.597,87.55,6.89289712]
[1772793803581,3.97246823,87.597,87.551,3.86116971]
[1772793803774,3.97246823,87.594,87.552,3.86116971]
[1772793804175,3.97246823,87.594,87.56,3.03172741]
[1772793804780,3.97246823,87.592,87.552,3.86116971]
[1772793805677,3.97246823,87.592,87.55,3.03172741]
[1772793805678,3.97246823,87.592,87.554,3.86116971]
[1772793807483,10.275,87.591,87.554,3.86116971]
[1772793807689,3.97246823,87.592,87.56,3.03172741]
[1772793809586,3.97246823,87.599,87.562,3.86116971]
[1772793809885,3.97246823,87.599,87.57,3.03172741]
[1772793810080,10.273,87.608,87.571,3.86116971]
[1772793810286,10.273,87.608,87.58,3.03172741]
[1772793810482,10.273,87.608,87.522,20.567]
[1772793810483,3.97246823,87.624,87.59,3.03172741]
[1772793810787,3.97246823,87.622,87.581,3.86116971]
[1772793810995,3.97246823,87.62,87.58,3.03172741]
[1772793811887,10.273,87.611,87.58,3.03172741]
[1772793816090,4.01935705,87.617,87.58,3.03172741]
[1772793816789,4.01935705,87.615,87.58,3.03172741]
[1772793817884,10.272,87.613,87.58,3.03172741]
[1772793822394,14.29135705,87.613,87.58,3.03172741]
[1772793823290,4.01935705,87.61,87.58,3.03172741]
[1772793823484,4.01935705,87.61,87.571,3.82288449]
[1772793823883,4.01935705,87.61,87.522,20.567]
[1772793824084,4.01935705,87.595,87.56,3.03172741]
[1772793825389,4.01935705,87.595,87.56,6.8546119]
[1772793827895,10.274,87.599,87.57,6.8546119]
[1772793830395,10.273,87.606,87.57,6.8546119]
[1772793830598,14.29235705,87.606,87.57,6.8546119]
[1772793830895,4.01935705,87.605,87.57,6.8546119]
[1772793831195,10.274,87.603,87.57,3.82288449]
[1772793831500,4.01935705,87.602,87.57,3.03172741]
[1772793832695,4.01935705,87.602,87.57,6.8546119]
[1772793834897,14.29135705,87.613,87.58,3.03172741]
[1772793835094,10.65916498,87.632,87.518,11.6181814]
[1772793835095,4.01935705,87.631,87.591,3.82288449]
[1772793835405,4.01935705,87.631,87.6,3.03172741]
[1772793836804,4.01935705,87.63,87.591,3.82288449]
[1772793836999,4.01935705,87.628,87.58,3.03172741]
[1772793837205,4.01935705,87.626,87.58,3.03172741]
[1772793837805,4.01935705,87.613,87.58,3.03172741]
[1772793838502,4.01935705,87.613,87.58,3.03138382]
[1772793839010,14.29235705,87.612,87.58,3.03138382]
[1772793839306,4.01935705,87.611,87.58,3.03138382]
[1772793841611,4.01935705,87.611,87.59,3.03138382]
[1772793841912,3.98282294,87.622,87.591,3.8110713]
[1772793842402,3.98282294,87.622,87.6,3.03138382]
[1772793842605,3.98282294,87.633,87.6,3.03138382]
[1772793842801,3.98282294,87.631,87.6,3.03138382]
[1772793843911,14.25282294,87.631,87.6,3.03138382]
[1772793846513,8.82415163,87.63,87.6,3.03138382]
[1772793846710,8.82415163,87.629,87.6,3.03138382]
[1772793847015,8.82415163,87.628,87.6,3.03138382]
[1772793847309,14.25282294,87.631,87.6,3.03138382]
[1772793848113,14.25282294,87.631,87.591,3.8110713]
[1772793848114,10.269,87.639,87.61,3.03138382]
[1772793848313,8.82245432,87.638,87.61,3.03138382]
[1772793848610,10.269,87.639,87.61,3.03138382]
[1772793848810,8.82096079,87.638,87.61,3.03138382]
[1772793849007,10.269,87.639,87.61,3.03138382]
[1772793850813,10.269,87.639,87.601,3.8110713]
[1772793852711,3.98282294,87.634,87.6,3.03138382]
[1772793852916,3.98282294,87.632,87.584,3.8110713]
[1772793853108,3.98282294,87.63,87.584,3.8110713]
[1772793853808,10.272,87.618,87.584,3.8110713]
[1772793854212,3.98282294,87.617,87.58,3.03138382]
[1772793854516,3.98282294,87.617,87.573,3.8110713]
[1772793855815,3.98282294,87.615,87.576,10.277]
[1772793856405,3.98282294,87.612,87.573,3.8110713]
[1772793856606,3.98282294,87.612,87.58,3.03138382]
[1772793857716,10.273,87.607,87.58,3.03138382]
[1772793857913,3.98282294,87.612,87.58,3.03138382]
[1772793858709,3.98282294,87.612,87.59,3.03138382]
[1772793859218,3.98282294,87.639,87.59,3.03138382]
[1772793859417,3.98282294,87.637,87.59,3.03138382]
[1772793859717,3.98282294,87.635,87.59,3.03138382]
[1772793859919,10.271,87.622,87.59,3.03138382]
[1772793860114,3.98282294,87.621,87.59,3.03138382]
[1772793863017,3.98282294,87.618,87.582,10.276]
[1772793863321,3.98282294,87.618,87.581,3.8110713]
[1772793863520,3.98282294,87.618,87.59,3.03138382]
[1772793865222,3.98282294,87.618,87.581,3.8110713]
[1772793866019,3.98282294,87.639,87.6,3.03138382]
[1772793866215,12.80161685,87.638,87.6,3.03138382]
[1772793866420,3.98282294,87.636,87.6,3.03138382]
[1772793866619,3.98282294,87.634,87.6,3.03138382]
[1772793866823,8.81879391,87.633,87.6,3.03138382]
[1772793867025,8.81879391,87.632,87.6,3.03138382]
[1772793867223,8.81879391,87.631,87.6,3.03138382]
[1772793867424,3.98282294,87.634,87.6,6.84245512]
[1772793867619,10.269,87.642,87.61,3.03138382]
[1772793869422,14.25182294,87.642,87.61,3.03138382]
[1772793870625,10.27,87.638,87.61,3.03138382]
[1772793871026,3.98282294,87.637,87.61,3.03138382]
[1772793871229,3.98282294,87.637,87.602,3.8110713]
[1772793871423,3.98282294,87.635,87.6,3.03138382]
[1772793872930,10.27,87.634,87.6,3.03138382]
[1772793873930,3.90917799,87.63,87.6,3.03138382]
[1772793874131,3.90917799,87.63,87.591,3.8110713]
[1772793874533,3.90917799,87.63,87.6,3.03138382]
[1772793875941,3.90917799,87.629,87.6,3.03138382]
[1772793876531,10.271,87.628,87.6,3.03138382]
[1772793876732,3.90917799,87.627,87.59,3.03138382]
[1772793877732,10.271,87.625,87.59,3.03138382]
[1772793878037,3.90917799,87.624,87.59,3.03138382]
[1772793882740,3.90917799,87.624,87.59,6.91799648]
[1772793883839,3.90917799,87.624,87.591,3.88661266]
[1772793886345,10.271,87.622,87.591,3.88661266]
[1772793887540,10.65984978,87.653,87.595,3.88661266]
[1772793887741,3.90917799,87.646,87.601,3.88661266]
[1772793888041,3.90917799,87.644,87.601,3.88661266]
[1772793888245,3.90917799,87.642,87.601,3.88661266]
[1772793888436,3.90917799,87.64,87.601,3.88661266]
[1772793888844,10.27,87.637,87.601,14.16061266]
[1772793889742,10.27,87.635,87.601,3.88661266]
[1772793889940,3.90917799,87.634,87.601,3.88661266]
[1772793890142,3.90917799,87.634,87.59,6.91799648]
[1772793890437,887.90984177,87.66,87.581,3.88661266]
[1772793890438,3.90917799,87.624,87.581,3.88661266]
[1772793891641,3.90917799,87.624,87.59,10.275]
[1772793891847,152.7988342,88.552,87.61,3.03138382]
[1772793891848,890.94122559,87.66,87.61,3.03138382]
[1772793892043,8.83289054,87.659,87.601,3.88661266]
[1772793892244,8.83289054,87.658,87.601,3.88661266]
[1772793892548,8.83289054,87.657,87.601,3.88661266]
[1772793892738,10.269,87.645,87.603,10.274]
[1772793893746,13.67797423,87.642,87.603,10.274]
[1772793893947,13.67797423,87.642,87.603,14.16061266]
[1772793895049,13.67797423,87.642,87.604,3.88661266]
[1772793897350,3.35289874,87.64,87.591,3.88661266]
[1772793897545,887.90984177,87.66,87.57,3.03138382]
[1772793897546,3.35289874,87.629,87.57,3.03138382]
[1772793897746,10.271,87.626,87.583,3.88661266]
[1772793898346,10.27,87.634,87.591,3.88661266]
[1772793898547,8.83124571,87.633,87.591,3.88661266]
[1772793898745,10.27,87.634,87.591,3.88661266]
[1772793898950,3.34529968,87.638,87.601,3.88661266]
[1772793900756,3.42581665,87.629,87.571,3.88661266]
[1772793901055,3.42581665,87.627,87.581,3.88661266]
[1772793901246,3.42581665,87.624,87.581,3.88661266]
[1772793901446,3.42581665,87.622,87.581,3.88661266]
[1772793901754,12.25945259,87.621,87.581,3.88661266]
[1772793902054,3.42806686,87.621,87.581,3.88661266]
[1772793902252,8.8332313,87.62,87.581,3.88661266]
[1772793902449,3.42806686,87.621,87.581,3.88661266]
[1772793902850,13.70006686,87.621,87.581,3.88661266]
[1772793903257,8.8354319,87.62,87.581,3.88661266]
[1772793903550,13.70006686,87.621,87.581,3.88661266]
[1772793903756,8.8354319,87.62,87.581,3.88661266]
[1772793904060,13.70006686,87.621,87.581,3.88661266]
[1772793904357,8.83517927,87.62,87.581,3.88661266]
[1772793904556,13.70006686,87.621,87.581,3.88661266]
[1772793904760,8.82970288,87.62,87.585,3.69414915]
[1772793905058,10.271,87.629,87.591,3.69414915]
[1772793905455,8.82891474,87.628,87.591,3.69414915]
[1772793905657,8.82891474,87.627,87.591,3.69414915]
[1772793905860,3.40371649,87.624,87.581,3.69414915]
[1772793906058,3.40371649,87.622,87.581,3.69414915]
[1772793906358,8.82891474,87.621,87.581,3.69414915]
[1772793906563,3.40371649,87.622,87.581,3.69414915]
[1772793906758,13.66892005,87.621,87.581,3.69414915]
[1772793908153,13.66892005,87.621,87.58,3.02963155]
[1772793908154,3.39692005,87.621,87.584,3.69414915]
[1772793909461,3.39692005,87.621,87.585,10.276]
[1772793911667,3.39692005,87.621,87.585,13.97014915]
[1772793911869,3.39692005,87.621,87.586,3.69414915]
[1772793912266,10.271,87.629,87.591,3.69414915]
[1772793912567,12.25875498,87.628,87.591,3.69414915]
[1772793912768,3.42992761,87.628,87.591,3.69414915]
[1772793914067,3.42992761,87.624,87.591,3.69414915]
[1772793914464,3.42991586,87.622,87.57,6.7237807]
[1772793914659,13.70291586,87.611,87.571,3.69414915]
[1772793914961,3.02963155,87.63,87.551,1.98663021]
[1772793914962,3.42991586,87.622,87.581,3.69414915]
[1772793915871,3.42991586,87.622,87.583,3.69414915]
[1772793916770,8.82985007,87.621,87.583,3.69414915]
[1772793916965,10.272,87.619,87.583,3.69414915]
[1772793917161,3.41694774,87.618,87.583,3.69414915]
[1772793917666,10.272,87.615,87.583,3.69414915]
[1772793917864,13.68894774,87.615,87.583,3.69414915]
[1772793918171,3.38750793,87.614,87.572,3.69414915]
[1772793918870,3.38750793,87.614,87.576,10.277]
[1772793919574,10.272,87.613,87.573,13.97114915]